Workbook

Sheet Титул
G1: Министерство образования Ставропольского края | AF1: Утверждаю
AF2: Директор ГБПОУ КРК «Интеграл»
AF4: В.В. Ерин
AF5: Рег.№ 833 от 10.06.2024 года
A9: УЧЕБНЫЙ ПЛАН
A10: программы подготовки специалистов среднего звена
A11: ГОСУДАРСТВЕННОЕ БЮДЖЕТНОЕ ПРОФЕССИОНАЛЬНОЕ ОБРАЗОВАТЕЛЬНОЕ УЧРЕЖДЕНИЕ КУРСАВСКИЙ РЕГИОНАЛЬНЫЙ КОЛЛЕДЖ «ИНТЕГРАЛ»
A12: наименование образовательного учреждения (организации)
A13: по специальности среднего профессионального образования
A14: 38.02.01 | G14: Экономика и бухгалтерский учет (по отраслям)
A15: код | G15: наименование специальности
A16: по программе базовой подготовки
A17: уровень образования | E17: основное общее образование
A19: квалификация: | G19: бухгалтер, специалист по налогообложению
G20: 20 7
G21: 21 7
G22: 22 7
G23: 23 7
G24: 24 7
G25: 25 7
A27: форма обучения | G27: Очная | P27: Срок получения СПО по ППССЗ: | AC27: 3г 10м | AI27: год начала подготовки по УП 2021 | AS27: 2023, 2024
A29: профиль получаемого профессионального образования | U29: социально-экономический
U30: при реализации программы среднего общего образования
A32: Приказ об утверждении ФГОС | L32: от | N32: 05.02.2018 | S32: № | U32: 69

Sheet График
A2: 1 Календарный учебный график
A3: Курс | B3: Сентябрь | F3: 29 сен - 5 окт | G3: Октябрь | J3: 27 окт - 2 ноя | K3: Ноябрь | O3: Декабрь | S3: 29 дек - 4 янв | T3: Январь | W3: 26 янв - 1 фев | X3: Февраль | AA3: 23 фев - 1 мар | AB3: Март | AF3: 30 мар - 5 апр | AG3: Апрель | AJ3: 27 апр - 3 май | AK3: Май | AO3: Июнь | AS3: 29 июн - 5 июл | AT3: Июль | AW3: 27 июл -2 авг | AX3: Август
B4: 1 - 7 | C4: 8 - 14 | D4: 15 - 21 | E4: 22 - 28 | G4: 6 - 12 | H4: 13 - 19 | I4: 20 - 26 | K4: 3 - 9 | L4: 10 - 16 | M4: 17 - 23 | N4: 24 - 30 | O4: 1 - 7 | P4: 8 - 14 | Q4: 15 - 21 | R4: 22 - 28 | T4: 5 - 11 | U4: 12 - 18 | V4: 19 - 25 | X4: 2 - 8 | Y4: 9 - 15 | Z4: 16 - 22 | AB4: 2 - 8 | AC4: 9 - 15 | AD4: 16 - 22 | AE4: 23 - 29 | AG4: 6 - 12 | AH4: 13 - 19 | AI4: 20 - 26 | AK4: 4 - 10 | AL4: 11 - 17 | AM4: 18 - 24 | AN4: 25 - 31 | AO4: 1 - 7 | AP4: 8 - 14 | AQ4: 15 - 21 | AR4: 22 - 28 | AT4: 6 - 12 | AU4: 13 - 19 | AV4: 20 - 26 | AX4: 3 - 9 | AY4: 10 - 16 | AZ4: 17 - 23 | BA4: 24 - 31
B5: 1 | C5: 2 | D5: 3 | E5: 4 | F5: 5 | G5: 6 | H5: 7 | I5: 8 | J5: 9 | K5: 10 | L5: 11 | M5: 12 | N5: 13 | O5: 14 | P5: 15 | Q5: 16 | R5: 17 | S5: 18 | T5: 19 | U5: 20 | V5: 21 | W5: 22 | X5: 23 | Y5: 24 | Z5: 25 | AA5: 26 | AB5: 27 | AC5: 28 | AD5: 29 | AE5: 30 | AF5: 31 | AG5: 32 | AH5: 33 | AI5: 34 | AJ5: 35 | AK5: 36 | AL5: 37 | AM5: 38 | AN5: 39 | AO5: 40 | AP5: 41 | AQ5: 42 | AR5: 43 | AS5: 44 | AT5: 45 | AU5: 46 | AV5: 47 | AW5: 48 | AX5: 49 | AY5: 50 | AZ5: 51 | BA5: 52
A7: 0
A10: I
A13: II
A16: III
A19: IV
A22: V
A25: VI
A28: VII
A31: VIII
A34: IX
A37: X
A40: XI
A43: 0 | B43: * | C43: * | D43: * | E43: * | F43: * | G43: * | H43: * | I43: * | J43: * | K43: * | L43: * | M43: * | N43: * | O43: * | P43: * | Q43: * | R43: * | S43: * | T43: * | U43: * | V43: * | W43: * | X43: * | Y43: * | Z43: * | AA43: * | AB43: * | AC43: * | AD43: * | AE43: * | AF43: * | AG43: * | AH43: * | AI43: * | AJ43: * | AK43: * | AL43: * | AM43: * | AN43: * | AO43: * | AP43: * | AQ43: * | AR43: * | AS43: * | AT43: * | AU43: * | AV43: * | AW43: * | AX43: * | AY43: * | AZ43: * | BA43: *
A50: I | S50: = | T50: = | AQ50: :: | AR50: :: | AS50: = | AT50: = | AU50: = | AV50: = | AW50: = | AX50: = | AY50: = | AZ50: = | BA50: =
A57: II | R57: :: | S57: = | T57: = | AO57: 0 | AP57: 8 | AQ57: :: | AR57: :: | AS57: = | AT57: = | AU57: = | AV57: = | AW57: = | AX57: = | AY57: = | AZ57: = | BA57: =
A64: III | R64: :: | S64: = | T64: = | AK64: 0 | AL64: 0 | AM64: 0 | AN64: 0 | AO64: 8 | AP64: 8 | AQ64: :: | AR64: :: | AS64: = | AT64: = | AU64: = | AV64: = | AW64: = | AX64: = | AY64: = | AZ64: = | BA64: =
A71: IV | P71: 0 | Q71: 8 | R71: :: | S71: = | T71: = | AE71: 0 | AF71: 0 | AG71: 8 | AH71: 8 | AI71: :: | AJ71: X | AK71: X | AL71: X | AM71: D | AN71: D | AO71: D | AP71: D | AQ71: III | AR71: III | AS71: * | AT71: * | AU71: * | AV71: * | AW71: * | AX71: * | AY71: * | AZ71: * | BA71: *
A78: V | B78: * | C78: * | D78: * | E78: * | F78: * | G78: * | H78: * | I78: * | J78: * | K78: * | L78: * | M78: * | N78: * | O78: * | P78: * | Q78: * | R78: * | S78: * | T78: * | U78: * | V78: * | W78: * | X78: * | Y78: * | Z78: * | AA78: * | AB78: * | AC78: * | AD78: * | AE78: * | AF78: * | AG78: * | AH78: * | AI78: * | AJ78: * | AK78: * | AL78: * | AM78: * | AN78: * | AO78: * | AP78: * | AQ78: * | AR78: * | AS78: * | AT78: * | AU78: * | AV78: * | AW78: * | AX78: * | AY78: * | AZ78: * | BA78: *
A85: VI | B85: * | C85: * | D85: * | E85: * | F85: * | G85: * | H85: * | I85: * | J85: * | K85: * | L85: * | M85: * | N85: * | O85: * | P85: * | Q85: * | R85: * | S85: * | T85: * | U85: * | V85: * | W85: * | X85: * | Y85: * | Z85: * | AA85: * | AB85: * | AC85: * | AD85: * | AE85: * | AF85: * | AG85: * | AH85: * | AI85: * | AJ85: * | AK85: * | AL85: * | AM85: * | AN85: * | AO85: * | AP85: * | AQ85: * | AR85: * | AS85: * | AT85: * | AU85: * | AV85: * | AW85: * | AX85: * | AY85: * | AZ85: * | BA85: *
A92: VII | B92: * | C92: * | D92: * | E92: * | F92: * | G92: * | H92: * | I92: * | J92: * | K92: * | L92: * | M92: * | N92: * | O92: * | P92: * | Q92: * | R92: * | S92: * | T92: * | U92: * | V92: * | W92: * | X92: * | Y92: * | Z92: * | AA92: * | AB92: * | AC92: * | AD92: * | AE92: * | AF92: * | AG92: * | AH92: * | AI92: * | AJ92: * | AK92: * | AL92: * | AM92: * | AN92: * | AO92: * | AP92: * | AQ92: * | AR92: * | AS92: * | AT92: * | AU92: * | AV92: * | AW92: * | AX92: * | AY92: * | AZ92: * | BA92: *
A99: VIII | B99: * | C99: * | D99: * | E99: * | F99: * | G99: * | H99: * | I99: * | J99: * | K99: * | L99: * | M99: * | N99: * | O99: * | P99: * | Q99: * | R99: * | S99: * | T99: * | U99: * | V99: * | W99: * | X99: * | Y99: * | Z99: * | AA99: * | AB99: * | AC99: * | AD99: * | AE99: * | AF99: * | AG99: * | AH99: * | AI99: * | AJ99: * | AK99: * | AL99: * | AM99: * | AN99: * | AO99: * | AP99: * | AQ99: * | AR99: * | AS99: * | AT99: * | AU99: * | AV99: * | AW99: * | AX99: * | AY99: * | AZ99: * | BA99: *
A106: IX | B106: * | C106: * | D106: * | E106: * | F106: * | G106: * | H106: * | I106: * | J106: * | K106: * | L106: * | M106: * | N106: * | O106: * | P106: * | Q106: * | R106: * | S106: * | T106: * | U106: * | V106: * | W106: * | X106: * | Y106: * | Z106: * | AA106: * | AB106: * | AC106: * | AD106: * | AE106: * | AF106: * | AG106: * | AH106: * | AI106: * | AJ106: * | AK106: * | AL106: * | AM106: * | AN106: * | AO106: * | AP106: * | AQ106: * | AR106: * | AS106: * | AT106: * | AU106: * | AV106: * | AW106: * | AX106: * | AY106: * | AZ106: * | BA106: *
A113: X | B113: * | C113: * | D113: * | E113: * | F113: * | G113: * | H113: * | I113: * | J113: * | K113: * | L113: * | M113: * | N113: * | O113: * | P113: * | Q113: * | R113: * | S113: * | T113: * | U113: * | V113: * | W113: * | X113: * | Y113: * | Z113: * | AA113: * | AB113: * | AC113: * | AD113: * | AE113: * | AF113: * | AG113: * | AH113: * | AI113: * | AJ113: * | AK113: * | AL113: * | AM113: * | AN113: * | AO113: * | AP113: * | AQ113: * | AR113: * | AS113: * | AT113: * | AU113: * | AV113: * | AW113: * | AX113: * | AY113: * | AZ113: * | BA113: *
A120: XI | B120: * | C120: * | D120: * | E120: * | F120: * | G120: * | H120: * | I120: * | J120: * | K120: * | L120: * | M120: * | N120: * | O120: * | P120: * | Q120: * | R120: * | S120: * | T120: * | U120: * | V120: * | W120: * | X120: * | Y120: * | Z120: * | AA120: * | AB120: * | AC120: * | AD120: * | AE120: * | AF120: * | AG120: * | AH120: * | AI120: * | AJ120: * | AK120: * | AL120: * | AM120: * | AN120: * | AO120: * | AP120: * | AQ120: * | AR120: * | AS120: * | AT120: * | AU120: * | AV120: * | AW120: * | AX120: * | AY120: * | AZ120: * | BA120: *
A127: Обозначения: | H127: Обучение по дисциплинам и междисциплинарным курсам | Y127: 0 | Z127: Учебная практика | AR127: D | AS127: Подготовка к государственной итоговой аттестации
G129: :: | H129: Промежуточная аттестация | Y129: 8 | Z129: Производственная практика (по профилю специальности) | AR129: III | AS129: Государственная итоговая аттестация
G131: = | H131: Каникулы | Y131: X | Z131: Производственная практика (преддипломная) | AR131: * | AS131: Неделя отсутствует
A133: 2 Сводные данные по бюджету времени
A135: Курс | B135: Обучение по дисциплинам и междисциплинарным курсам | T135: Промежуточная аттестация | AC135: Практики | AX135: ГИА | BD135: Каникулы | BG135: Всего | BJ135: Студентов | BN135: Групп
AC136: Учебная практика | AJ136: Производственная практика (по профилю специальности) | AQ136: Производственная практика (преддипломная) | AX136: Подго- товка | BA136: Прове- дение
B137: Всего | H137: 1 сем | N137: 2 сем | T137: Всего | W137: 1 сем | Z137: 2 сем | AC137: Всего | AF137: 1 сем | AH137: 2 сем | AJ137: Всего | AM137: 1 сем | AO137: 2 сем | AQ137: Всего | AT137: 1 сем | AV137: 2 сем
B138: нед. | H138: нед. | N138: нед. | T138: нед. | W138: нед. | Z138: нед. | AC138: нед. | AF138: нед. | AH138: нед. | AJ138: нед. | AM138: нед. | AO138: нед. | AQ138: нед. | AT138: нед. | AV138: нед. | AX138: нед. | BA138: нед. | BD138: нед. | BG138: нед.
A139: I | B139: 39 | H139: 17 | N139: 22 | T139: 2 | Z139: 2 | BD139: 11 | BG139: 52
A140: II | B140: 36 | H140: 16 | N140: 20 | T140: 3 | W140: 1 | Z140: 2 | AC140: 1 | AH140: 1 | AJ140: 1 | AO140: 1 | BD140: 11 | BG140: 52
A141: III | B141: 32 | H141: 16 | N141: 16 | T141: 3 | W141: 1 | Z141: 2 | AC141: 4 | AH141: 4 | AJ141: 2 | AO141: 2 | BD141: 11 | BG141: 52
A142: IV | B142: 24 | H142: 14 | N142: 10 | T142: 2 | W142: 1 | Z142: 1 | AC142: 3 | AF142: 1 | AH142: 2 | AJ142: 3 | AM142: 1 | AO142: 2 | AQ142: 3 | AV142: 3 | AX142: 4 | BA142: 2 | BD142: 2 | BG142: 43
A143: V
A144: VI
A145: VII
A146: VIII
A147: IX
A148: X
A149: XI
A150: Всего | B150: 131 | H150: 2292 | N150: 3282 | T150: 10 | AC150: 8 | AJ150: 6 | AQ150: 3 | AX150: 4 | BA150: 2 | BD150: 35 | BG150: 199
A152: Курс | B152: Обучение по дисциплинам и междисциплинарным курсам, в том числе учебная практика | T152: Промежуточная аттестация | AC152: Практики | AQ152: ГИА | AW152: Каникулы | AZ152: Всего | BC152: Студентов | BG152: Групп
AC153: Производственная практика (по профилю специальности) | AJ153: Производственная практика (преддипломная) | AQ153: Подго- товка | AT153: Прове- дение
B154: Всего | H154: 1 сем | N154: 2 сем | T154: Всего | W154: 1 сем | Z154: 2 сем | AC154: Всего | AF154: 1 сем | AH154: 2 сем | AJ154: Всего | AM154: 1 сем | AO154: 2 сем
B155: нед. | E155: час. обяз. уч. занятий | H155: нед. | K155: час. обяз. уч. занятий | N155: нед. | Q155: час. обяз. уч. занятий | T155: нед. | W155: нед. | Z155: нед. | AC155: нед. | AF155: нед. | AH155: нед. | AJ155: нед. | AM155: нед. | AO155: нед. | AQ155: нед. | AT155: нед. | AW155: нед. | AZ155: нед.
A156: I
A157: II
A158: III
A159: IV
A160: V
A161: VI
A162: VII
A163: VIII
A164: IX
A165: X
A166: XI
A167: Всего
A169: Курс | B169: Обучение по циклам и разделу "Физическая культура" | T169: Промежуточная аттестация | AC169: Практики | AQ169: ГИА | AT169: Каникулы | AW169: Всего | AZ169: Студентов | BD169: Групп
AC170: Учебная практика (Производственное обучение) | AJ170: Производственная практика | AQ170: Прове- дение
B171: Всего | H171: 1 сем | N171: 2 сем | T171: Всего | W171: 1 сем | Z171: 2 сем | AC171: Всего | AF171: 1 сем | AH171: 2 сем | AJ171: Всего | AM171: 1 сем | AO171: 2 сем
B172: нед. | E172: час. обяз. уч. зан. | H172: нед. | K172: час. обяз. уч. зан. | N172: нед. | Q172: час. обяз. уч. зан. | T172: нед. | W172: нед. | Z172: нед. | AC172: нед. | AF172: нед. | AH172: нед. | AJ172: нед. | AM172: нед. | AO172: нед. | AQ172: нед. | AT172: нед. | AW172: нед.
A173: I
A174: II
A175: III
A176: IV
A177: V
A178: Всего
A180: Курс | B180: Обучение по циклам и разделу "Физическая культура", в том числе учебная практика | T180: Промежуточная аттестация | AC180: Практики | AJ180: ГИА | AM180: Каникулы | AP180: Всего | AS180: Студентов | AW180: Групп
AC181: Производственная практика | AJ181: Прове- дение
B182: Всего | H182: 1 сем | N182: 2 сем | T182: Всего | W182: 1 сем | Z182: 2 сем | AC182: Всего | AF182: 1 сем | AH182: 2 сем
B183: нед. | E183: час. обяз. уч. зан. | H183: нед. | K183: час. обяз. уч. зан. | N183: нед. | Q183: час. обяз. уч. зан. | T183: нед. | W183: нед. | Z183: нед. | AC183: нед. | AF183: нед. | AH183: нед. | AJ183: нед. | AM183: нед. | AP183: нед.
A184: I
A185: II
A186: III
A187: IV
A188: V
A189: Всего

Sheet План
B1: Индекс | C1: Наименование циклов, разделов, дисциплин, профессиональных модулей, МДК, практик | D1: Формы промежуточной аттестации | I1: Учебная нагрузка обучающихся, ч. | Q1: Распределение по курсам и семестрам
Q2: Курс 1 | AG2: Курс 2 | AW2: Курс 3 | BM2: Курс 4
D3: Экзамены | E3: Зачеты | F3: Диффер. зачеты | G3: Курсовые проекты | H3: Курсовые работы | I3: Максимальная | J3: Самост.(с.р.+и.п.) | K3: Обязательная | Q3: Семестр 1 | Y3: Семестр 2 | AG3: Семестр 3 | AO3: Семестр 4 | AW3: Семестр 5 | BE3: Семестр 6 | BM3: Семестр 7 | BU3: Семестр 8
K4: Всего | L4: в том числе | Q4: 17 нед | Y4: 22 нед | AG4: 16 нед | AO4: 20 (2 ) нед | AW4: 16 нед | BE4: 16 (6 ) нед | BM4: 14 (2 ) нед | BU4: 10 (7 ) нед
L5: Лекции, уроки | M5: Пр. занятия | N5: Лаб. занятия | O5: Курс.работы | P5: Промежут. аттестация | Q5: Максим. | R5: Самост. | S5: Обязательная | T5: в том числе | Y5: Максим. | Z5: Самост. | AA5: Обязательная | AB5: в том числе | AG5: Максим. | AH5: Самост. | AI5: Обязательная | AJ5: в том числе | AO5: Максим. | AP5: Самост. | AQ5: Обязательная | AR5: в том числе | AW5: Максим. | AX5: Самост. | AY5: Обязательная | AZ5: в том числе | BE5: Максим. | BF5: Самост. | BG5: Обязательная | BH5: в том числе | BM5: Максим. | BN5: Самост. | BO5: Обязательная | BP5: в том числе | BU5: Максим. | BV5: Самост. | BW5: Обязательная | BX5: в том числе
T6: Лекции, уроки | U6: Пр.занятия | V6: Лаб. занятия | W6: Курс.работы | X6: Промежут. аттестация | AB6: Лекции, уроки | AC6: Пр.занятия | AD6: Лаб. занятия | AE6: Курс.работы | AF6: Промежут. аттестация | AJ6: Лекции, уроки | AK6: Пр.занятия | AL6: Лаб. занятия | AM6: Курс.работы | AN6: Промежут. аттестация | AR6: Лекции, уроки | AS6: Пр.занятия | AT6: Лаб. занятия | AU6: Курс.работы | AV6: Промежут. аттестация | AZ6: Лекции, уроки | BA6: Пр.занятия | BB6: Лаб. занятия | BC6: Курс.работы | BD6: Промежут. аттестация | BH6: Лекции, уроки | BI6: Пр.занятия | BJ6: Лаб. занятия | BK6: Курс.работы | BL6: Промежут. аттестация | BP6: Лекции, уроки | BQ6: Пр.занятия | BR6: Лаб. занятия | BS6: Курс.работы | BT6: Промежут. аттестация | BX6: Лекции, уроки | BY6: Пр.занятия | BZ6: Лаб. занятия | CA6: Курс.работы | CB6: Промежут. аттестация
B7: 1 | C7: 2 | D7: 3 | E7: 4 | F7: 5 | G7: 6 | H7: 7 | I7: 8 | J7: 9 | K7: 10 | L7: 11 | M7: 12 | N7: 13 | O7: 14 | P7: 15 | Q7: 16 | R7: 17 | S7: 18 | T7: 19 | U7: 20 | V7: 21 | W7: 22 | X7: 23 | Y7: 24 | Z7: 25 | AA7: 26 | AB7: 27 | AC7: 28 | AD7: 29 | AE7: 30 | AF7: 31 | AG7: 32 | AH7: 33 | AI7: 34 | AJ7: 35 | AK7: 36 | AL7: 37 | AM7: 38 | AN7: 39 | AO7: 40 | AP7: 41 | AQ7: 42 | AR7: 43 | AS7: 44 | AT7: 45 | AU7: 46 | AV7: 47 | AW7: 48 | AX7: 49 | AY7: 50 | AZ7: 51 | BA7: 52 | BB7: 53 | BC7: 54 | BD7: 55 | BE7: 56 | BF7: 57 | BG7: 58 | BH7: 59 | BI7: 60 | BJ7: 61 | BK7: 62 | BL7: 63 | BM7: 64 | BN7: 65 | BO7: 66 | BP7: 67 | BQ7: 68 | BR7: 69 | BS7: 70 | BT7: 71 | BU7: 72 | BV7: 73 | BW7: 74 | BX7: 75 | BY7: 76 | BZ7: 77 | CA7: 78 | CB7: 79
A8: 3 | B8: ОП | C8: ОБЩЕОБРАЗОВАТЕЛЬНАЯ ПОДГОТОВКА | D8: 4 | F8: 12 | I8: 1508 | K8: 1508 | L8: 792 | M8: 676 | P8: 42 | Q8: 564 | S8: 564 | T8: 300 | U8: 262 | X8: 2 | Y8: 588 | AA8: 596 | AB8: 298 | AC8: 164 | AF8: 26 | AG8: 198 | AI8: 192 | AJ8: 112 | AK8: 80 | AN8: 6 | AO8: 88 | AQ8: 80 | AR8: 52 | AS8: 28 | AV8: 6
A9: 11 | B9: СО | C9: Среднее общее образование | D9: 3 | E9: 1 | F9: 10 | I9: =Q9+Y9+AG9+AO9+AW9+BE9 -> 1508 | K9: =K11+K28 -> 1508 | L9: =L11+L28 -> 792 | M9: 668 | P9: 48 | Q9: =Q11+Q28 -> 596 | S9: =S11+S28 -> 596 | T9: =T11+T28 -> 300 | U9: =U11+U28 -> 262 | V9: 0 | W9: 30 | X9: 4 | Y9: =Y11+Y28 -> 626 | Z9: =Z11+Z28 -> 0 | AA9: =AA11+AA28 -> 626 | AB9: =AB11+AB28 -> 298 | AC9: 298 | AD9: 0 | AE9: 0 | AF9: 30 | AG9: =AG11 -> 198 | AI9: =AI11 -> 192 | AJ9: =AJ11 -> 112 | AK9: =AK11 -> 80 | AN9: =AN11 -> 6 | AO9: =AO11 -> 88 | AQ9: =AQ11 -> 80 | AR9: =AR11 -> 52 | AS9: =AS11 -> 28 | AV9: =AV11 -> 8
A10: 12
A11: 13 | B11: БД | C11: Базовые дисциплины | D11: 3 | E11: 1 | F11: 10 | I11: =Q11+Y11+AG11+AO11+AW11+BE11 -> 1476 | K11: =K12+K13+K14+K15+K16+K17+K18+K20+K21+K22+K23+K24+K25+K26 -> 1476 | L11: =L12+L13+L14+L15+L16+L18+L20+L21+L22+L23+L24+L25+L26 -> 762 | M11: =M12+M13+M14+M15+M16+M17+M18+M20+M21+M22+M23+M24+M25 -> 668 | P11: =P12+P13+P14+P15+P16+P17+P18+P20+P21+P22+P23+P24+P25+P26 -> 46 | Q11: =R11+S11 -> 564 | R11: =R12+R13+R14+R15+R16+R17+R18 -> 0 | S11: =S12+S13+S14+S15+S16+S17+S18+S20+S21+S22+S23+S24+S25+S26 -> 564 | T11: =T12+T13+T14+T15+T16+T17+T18+T20+T21+T22+T23+T24+T25+T26 -> 270 | U11: 262 | V11: 0 | W11: 30 | X11: 2 | Y11: =Z11+AA11 -> 626 | Z11: =Z12+Z13+Z14+Z15+Z16+Z17+Z18 -> 0 | AA11: =AA12+AA13+AA14+AA15+AA16+AA17+AA18+AA20+AA21+AA22+AA23+AA24+AA25+AA26 -> 626 | AB11: =AB12+AB13+AB14+AB15+AB16+AB17+AB18+AB20+AB21+AB22+AB23+AB24+AB25+AB26 -> 298 | AC11: 298 | AD11: 0 | AE11: 0 | AF11: 30 | AG11: =AG15+AG18+AG20+AG25 -> 198 | AI11: =AI15+AI18+AI20+AI25 -> 192 | AJ11: =AJ15+AJ18+AJ20+AJ25 -> 112 | AK11: =AK15+AK18+AK20+AK25 -> 80 | AN11: =AN15+AN20+AN25 -> 6 | AO11: =AO12+AO13+AO14+AO15+AO16+AO17+AO18 -> 88 | AQ11: =AQ12+AQ13+AQ14+AQ15+AQ16+AQ17+AQ18 -> 80 | AR11: =AR12+AR13+AR14+AR15+AR16+AR17+AR18 -> 52 | AS11: =AS12+AS13+AS14+AS15+AS16+AS17+AS18 -> 28 | AV11: =AV12+AV13+AV14+AV15+AV16+AV17+AV18 -> 8
A12: 14 | B12: ООД.01 | C12: Русский язык | D12: 2 | I12: =Q12+Y12+AG12+AO12+AW12+BE12 -> 72 | K12: =L12+M12+N12+O12+P12 -> 72 | L12: 34 | M12: 30 | P12: 8 | Q12: =R12+S12 -> 28 | S12: =T12+U12+V12+W12+X12 -> 28 | T12: 16 | U12: 12 | Y12: =Z12+AA12 -> 44 | AA12: =AB12+AC12+AD12+AE12+AF12 -> 44 | AB12: 18 | AC12: 18 | AF12: 8
A13: 15 | B13: ООД.02 | C13: Литература | F13: 2 | I13: =Q13+Y13+AG13+AO13+AW13+BE13 -> 108 | K13: 108 | L13: 52 | M13: 54 | P13: 2 | Q13: =R13+S13 -> 52 | S13: =T13+U13+V13+W13+X13 -> 52 | T13: 26 | U13: 26 | Y13: =Z13+AA13 -> 56 | AA13: =AB13+AC13+AD13+AE13+AF13 -> 56 | AB13: 26 | AC13: 28 | AF13: 2
A14: 16 | B14: ООД.03 | C14: История | D14: 2 | I14: 136 | K14: 136 | L14: 88 | M14: 40 | P14: 8 | Q14: 62 | S14: 62 | T14: 44 | U14: 18 | Y14: 74 | AA14: 74 | AB14: 44 | AC14: 22 | AF14: 8
A15: 17 | B15: ООД.04 | C15: Обществознание | F15: 3 | I15: 108 | K15: 108 | L15: 54 | M15: 52 | P15: 2 | Q15: 34 | S15: 34 | T15: 18 | U15: 16 | Y15: 36 | AA15: 36 | AB15: 18 | AC15: 18 | AG15: 38 | AI15: 36 | AJ15: 18 | AK15: 18 | AN15: 2
A16: 18 | B16: ООД.05 | C16: География | F16: 2 | I16: 72 | K16: 72 | L16: 42 | M16: 28 | P16: 2 | Q16: 34 | S16: 34 | T16: 20 | U16: 14 | Y16: 38 | AA16: 38 | AB16: 22 | AC16: 14 | AF16: 2
A17: 19 | B17: ООД.06 | C17: Иностранный язык | F17: 2 | I17: 72 | K17: 72 | M17: 70 | P17: 2 | Q17: 34 | S17: 34 | U17: 34 | Y17: 38 | AA17: 38 | AC17: 36 | AF17: 2
A18: 20 | B18: ООД.07 | C18: Математика | D18: 4 | I18: 340 | K18: 340 | L18: 220 | M18: 112 | P18: 8 | Q18: 84 | S18: 84 | T18: 56 | U18: 28 | Y18: 84 | AA18: 84 | AB18: 56 | AC18: 28 | AG18: 84 | AI18: 84 | AJ18: 56 | AK18: 28 | AO18: 88 | AQ18: 80 | AR18: 52 | AS18: 28 | AV18: 8
A19: 22 | I19: 0 | Q19: 0 | S19: 0 | Y19: 0 | AA19: 0
A20: 24 | B20: ООД.08 | C20: Информатика | F20: 3 | I20: 144 | K20: 144 | L20: 52 | M20: 90 | P20: 2 | Q20: 52 | S20: 52 | T20: 16 | U20: 36 | Y20: 54 | AA20: 54 | AB20: 18 | AC20: 36 | AG20: 38 | AI20: 36 | AJ20: 18 | AK20: 18 | AN20: 2
A21: 25 | B21: ООД.09 | C21: Физическая культура | F21: 2 | I21: 72 | K21: 72 | L21: 12 | M21: 58 | P21: 2 | Q21: 34 | S21: 34 | T21: 6 | U21: 28 | Y21: 38 | AA21: 38 | AB21: 6 | AC21: 30 | AF21: 2
A22: 26 | B22: ООД.10 | C22: Основы безопасности изащиты Родины | F22: 2 | I22: 68 | K22: 68 | L22: 20 | M22: 46 | P22: 2 | Q22: 32 | S22: 32 | T22: 10 | U22: 22 | Y22: 36 | AA22: 36 | AB22: 10 | AC22: 24 | AF22: 2
A23: 27 | B23: ООД.11 | C23: Физика | F23: 2 | I23: 108 | K23: 108 | L23: 86 | M23: 20 | P23: 2 | Q23: 52 | S23: 52 | T23: 42 | U23: 10 | Y23: 56 | AA23: 56 | AB23: 44 | AC23: 10 | AF23: 2
A24: 28 | B24: ООД.12 | C24: Химия | F24: 2 | I24: 72 | K24: 72 | L24: 32 | M24: 38 | P24: 2 | Q24: 34 | S24: 34 | T24: 16 | U24: 18 | Y24: 38 | AA24: 38 | AB24: 16 | AC24: 20 | AF24: 2
A25: 29 | B25: ООД.13 | C25: Биология | F25: 3 | I25: 72 | K25: 72 | L25: 40 | M25: 30 | P25: 2 | Q25: 0 | S25: 0 | Y25: 34 | AA25: 34 | AB25: 20 | AC25: 14 | AG25: 38 | AI25: 36 | AJ25: 20 | AK25: 16 | AN25: 2
A26: 30 | B26: ИП | C26: Индивидуальный проект | I26: 32 | K26: 32 | L26: 30 | P26: 2 | Q26: 32 | S26: 32 | W26: 30 | X26: 2 | Y26: 0 | AA26: 0
A27: 33 | Q27: 0 | S27: 0
A28: 34 | B28: ПОО | C28: Предлагаемые ОО | E28: 1 | I28: 32 | K28: 32 | L28: 30 | P28: 2 | Q28: 32 | S28: 32 | T28: 30 | X28: 2
A29: 35 | B29: ПОО.01 | C29: Россия - моя история | E29: 1 | I29: 32 | K29: 32 | L29: 30 | P29: 2 | Q29: 32 | S29: 32 | T29: 30 | X29: 2
A30: 40 | B30: ПП | C30: ПРОФЕССИОНАЛЬНАЯ ПОДГОТОВКА | D30: 23 | E30: 3 | F30: 29 | H30: 2 | I30: =I32+I40+I148+I44+I67 -> 4245 | J30: =J32+J40+J148+J44+J67 -> 259 | K30: =K32+K40+K148+K44+K67 -> 3986 | L30: =L32+L40+L44+L67 -> 1722 | M30: =M32+M40+M44+M67 -> 1340 | O30: =O32+O40+O148+O44+O67 -> 40 | P30: 164 | Q30: =Q44 -> 45 | R30: =R32+R40+R148+R44+R67 -> 5 | S30: =S32+S40+S148+S44+S67 -> 40 | T30: =T32+T40+T44+T67 -> 24 | U30: 16 | W30: 0 | X30: 0 | Y30: 86 | Z30: 4 | AA30: 82 | AC30: 24 | AF30: 8 | AG30: 446 | AH30: 42 | AI30: 404 | AJ30: 204 | AK30: 190 | AN30: 10 | AO30: 824 | AP30: 44 | AQ30: 780 | AR30: 392 | AS30: 276 | AV30: 40 | AW30: 612 | AX30: 34 | AY30: 578 | BA30: 239 | BC30: 20 | BD30: 8 | BE30: 864 | BF30: 48 | BG30: 816 | BH30: 329 | BI30: 223 | BL30: 48 | BM30: 612 | BN30: 34 | BO30: 578 | BP30: =BP32+BP40 -> 38 | BQ30: 222 | BT30: 24 | BU30: 648 | BV30: =BV32+BV40+BV148+BV44+BV67 -> 48 | BW30: 600 | BX30: 152 | BY30: 150 | CA30: 20 | CB30: 26
A31: 41
A32: 42 | B32: ОГСЭ | C32: Общий гуманитарный и социально-экономический учебный цикл | D32: 2 | F32: 3 | I32: =I33+I34+I35+I36+I37 -> 716 | J32: =J33+J34+J35+J36+J37 -> 48 | K32: 668 | L32: 132 | M32: 518 | P32: 18 | AG32: 158 | AH32: 12 | AI32: 146 | AJ32: 40 | AK32: 100 | AL32: 0 | AM32: 0 | AN32: 6 | AO32: 151 | AP32: 9 | AQ32: 142 | AR32: 54 | AS32: 86 | AV32: 2 | AW32: 108 | AX32: 4 | AY32: 104 | BA32: 104 | BE32: 91 | BF32: 9 | BG32: 82 | BI32: 82 | BM32: 132 | BN32: 6 | BO32: 126 | BP32: 38 | BQ32: 86 | BT32: 2 | BU32: 76 | BV32: =BV33+BV34+BV35+BV36+BV37 -> 8 | BW32: 68 | BY32: 60 | CB32: 8
A33: 43 | B33: ОГСЭ.01 | C33: Основы философии | F33: 4 | I33: 65 | J33: 3 | K33: 62 | L33: 54 | M33: 6 | P33: 2 | AO33: 65 | AP33: 3 | AQ33: 62 | AR33: 54 | AS33: 6 | AV33: 2
A34: 44 | B34: ОГСЭ.02 | C34: История | D34: 3 | I34: 52 | J34: 4 | K34: 48 | L34: 32 | M34: 10 | P34: 6 | AG34: 52 | AH34: 4 | AI34: 48 | AJ34: 32 | AK34: 10 | AN34: 6
A35: 45 | B35: ОГСЭ.03 | C35: Психология общения | F35: 7 | I35: 52 | J35: 2 | K35: 50 | L35: 38 | M35: 10 | P35: 2 | BM35: 52 | BN35: 2 | BO35: 50 | BP35: 38 | BQ35: 10 | BT35: 2
A36: 46 | B36: ОГСЭ.04 | C36: Иностранный язык в профессиональной деятельности | D36: 8 | I36: 267 | J36: 21 | K36: 246 | L36: 4 | M36: 236 | P36: 6 | AG36: 46 | AH36: 4 | AI36: 42 | AJ36: 4 | AK36: 38 | AO36: 43 | AP36: 3 | AQ36: 40 | AS36: 40 | AW36: 54 | AX36: 2 | AY36: 52 | BA36: 52 | BE36: 48 | BF36: 6 | BG36: 42 | BI36: 42 | BM36: 36 | BN36: 2 | BO36: 34 | BQ36: 34 | BU36: 40 | BV36: 4 | BW36: 36 | BY36: 30 | CB36: 6
A37: 47 | B37: ОГСЭ.05.01 | C37: Физическая культура | F37: 8 | I37: 280 | J37: 18 | K37: 262 | L37: 4 | M37: 256 | P37: 2 | AG37: 60 | AH37: 4 | AI37: 56 | AJ37: 4 | AK37: 52 | AO37: 43 | AP37: 3 | AQ37: 40 | AS37: 40 | AW37: 54 | AX37: 2 | AY37: 52 | BA37: 52 | BE37: 43 | BF37: 3 | BG37: 40 | BI37: 40 | BM37: 44 | BN37: 2 | BO37: 42 | BQ37: 42 | BU37: 36 | BV37: 4 | BW37: 32 | BY37: 30 | CB37: 2
A38: 48 | B38: ОГСЭ.05.02 | C38: Адаптированная физическая культура
A39: 50
A40: 51 | B40: ЕН | C40: Математический и общий естественнонаучный учебный цикл | F40: 2 | I40: =I41+I42 -> 110 | J40: =J41+J42 -> 2 | K40: 108 | L40: 54 | M40: 50 | P40: 4 | AO40: 110 | AP40: 2 | AQ40: 108 | AR40: 54 | AS40: 50 | AV40: 4
A41: 52 | B41: ЕН.01 | C41: Математика | F41: 4 | I41: 64 | J41: 2 | K41: 62 | L41: 30 | M41: 30 | P41: 2 | AO41: 64 | AP41: 2 | AQ41: 62 | AR41: 30 | AS41: 30 | AV41: 2
A42: 53 | B42: ЕН.02 | C42: Информационные технологии в профессиональной деятельности | F42: 4 | I42: 46 | K42: 46 | L42: 24 | M42: 20 | P42: 2 | AO42: 46 | AQ42: 46 | AR42: 24 | AS42: 20 | AV42: 2
A43: 55
A44: 56 | B44: ОПЦ | C44: Общепрофессиональный цикл | D44: 8 | E44: 3 | F44: 10 | H44: 1 | I44: =I45+I46+I47+I48+I49+I50+I51+I52+I53+I54+I55+I56+I57+I58+I65+I59+I60+I61+I62+I63+I64 -> 1593 | J44: =J45+J46+J47+J48+J49+J50+J51+J52+J53+J54+J55+J56+J57+J58+J65+J59+J60+J61+J62+J63+J64 -> 115 | K44: 1478 | L44: =L45+L46+L47+L48+L49+L50+L51+L52+L53+L54+L55+L56+L57+L58+L65+L59+L60+L61+L62+L63+L64 -> 906 | M44: 478 | O44: 20 | P44: 74 | Q44: =Q45+Q46+Q47+Q48+Q49+Q50+Q51+Q52+Q53+Q54+Q55+Q56+Q57+Q58+Q65+Q59+Q60+Q61+Q62+Q63+Q64 -> 45 | R44: 5 | S44: =S45+S46+S47+S48+S49+S50+S51+S52+S53+S54+S55+S56+S57+S58+S65+S59+S60+S61+S62+S63+S64 -> 40 | T44: 24 | U44: 16 | W44: 0 | X44: 0 | Y44: =Y45+Y46+Y47+Y48+Y49+Y50+Y51+Y52+Y53+Y54+Y55+Y56+Y57+Y58+Y65+Y59+Y60+Y61+Y62+Y63+Y64+Y67 -> 86 | Z44: =Z45+Z46+Z47+Z48+Z49+Z50+Z51+Z52+Z53+Z54+Z55+Z56+Z57+Z58+Z65+Z59+Z60+Z61+Z62+Z63+Z64+Z67 -> 4 | AA44: 82 | AB44: 50 | AC44: 24 | AD44: 0 | AE44: 0 | AF44: 8 | AG44: 204 | AH44: =AH45+AH46+AH47+AH48+AH49+AH50+AH51+AH52+AH53+AH54+AH55+AH56+AH57+AH58+AH65+AH59+AH60+AH61+AH62+AH63+AH64+AH67 -> 30 | AI44: 184 | AJ44: 120 | AK44: 60 | AL44: =AL45+AL46+AL47+AL48+AL49+AL50+AL51+AL52+AL53+AL54+AL55+AL56+AL57+AL58+AL65+AL59+AL60+AL61+AL62+AL63+AL64+AL67 -> 0 | AM44: =AM45+AM46+AM47+AM48+AM49+AM50+AM51+AM52+AM53+AM54+AM55+AM56+AM57+AM58+AM65+AM59+AM60+AM61+AM62+AM63+AM64+AM67 -> 0 | AN44: =AN45+AN46+AN47+AN48+AN49+AN50+AN51+AN52+AN53+AN54+AN55+AN56+AN57+AN58+AN65+AN59+AN60+AN61+AN62+AN63+AN64+AN67 -> 4 | AO44: 277 | AP44: 15 | AQ44: 262 | AR44: 164 | AS44: 78 | AV44: 20 | AW44: 392 | AX44: 22 | AY44: 370 | AZ44: 237 | BA44: 105 | BC44: 20 | BD44: 8 | BE44: 343 | BF44: 23 | BG44: 320 | BH44: 215 | BI44: 81 | BL44: 24 | BM44: 116 | BN44: 6 | BO44: 110 | BP44: 48 | BQ44: 58 | BT44: 4 | BU44: 130 | BV44: =BV45+BV46+BV47+BV48+BV49+BV50+BV51+BV52+BV53+BV54+BV55+BV56+BV57+BV58+BV65+BV59+BV60+BV61+BV62+BV63+BV64 -> 20 | BW44: 110 | BX44: 48 | BY44: 56 | CB44: 6
A45: 57 | B45: ОПЦ.01 | C45: Экономика организации | D45: 6 | I45: 130 | J45: 6 | K45: 124 | L45: 83 | M45: 35 | P45: 6 | AW45: 32 | AX45: 2 | AY45: 30 | AZ45: 15 | BA45: 15 | BE45: 98 | BF45: 4 | BG45: 94 | BH45: 68 | BI45: 20 | BL45: 6
A46: 58 | B46: ОПЦ.02 | C46: Статистика | D46: 4 | I46: 95 | J46: 7 | K46: 88 | L46: 62 | M46: 20 | P46: 6 | AG46: 40 | AH46: 4 | AI46: 36 | AJ46: 26 | AK46: 10 | AO46: 55 | AP46: 3 | AQ46: 52 | AR46: 36 | AS46: 10 | AV46: 6
A47: 59 | B47: ОПЦ.03 | C47: Менеджмент | D47: 4 | I47: 81 | J47: 3 | K47: 78 | L47: 50 | M47: 22 | P47: 6 | AO47: 81 | AP47: 3 | AQ47: 78 | AR47: 50 | AS47: 22 | AV47: 6
A48: 60 | B48: ОПЦ.04 | C48: Документационное обеспечение управления | F48: 4 | I48: 55 | J48: 3 | K48: 52 | L48: 34 | M48: 16 | P48: 2 | AO48: 55 | AP48: 3 | AQ48: 52 | AR48: 34 | AS48: 16 | AV48: 2
A49: 61 | B49: ОПЦ.05 | C49: Правовое обеспечение профессиональной деятельности | F49: 5 | I49: 36 | J49: 2 | K49: 34 | L49: 22 | M49: 10 | P49: 2 | AW49: 36 | AX49: 2 | AY49: 34 | AZ49: 22 | BA49: 10 | BD49: 2
A50: 62 | B50: ОПЦ.06 | C50: Финансы, денежное обращение и кредит | F50: 6 | I50: 87 | J50: 7 | K50: 80 | L50: 48 | M50: 30 | P50: 2 | AW50: 43 | AX50: 3 | AY50: 40 | AZ50: 25 | BA50: 15 | BE50: 44 | BF50: 4 | BG50: 40 | BH50: 23 | BI50: 15 | BL50: 2
A51: 63 | B51: ОПЦ.07 | C51: Налоги и налогообложение | D51: 6 | I51: 79 | J51: 7 | K51: 72 | L51: 43 | M51: 23 | P51: 6 | AW51: 45 | AX51: 3 | AY51: 42 | AZ51: 27 | BA51: 15 | BE51: 34 | BF51: 4 | BG51: 30 | BH51: 16 | BI51: 8 | BL51: 6
A52: 64 | B52: ОПЦ.08 | C52: Основы бухгалтерского учета | D52: 2 | I52: 87 | J52: 7 | K52: 80 | L52: 48 | M52: 26 | P52: 6 | Q52: 45 | R52: 5 | S52: 40 | T52: 24 | U52: 16 | Y52: 42 | Z52: 2 | AA52: 40 | AB52: 24 | AC52: 10 | AF52: 6
A53: 65 | B53: ОПЦ.09 | C53: Аудит | F53: 6 | I53: 85 | J53: 7 | K53: 78 | L53: 56 | M53: 20 | P53: 2 | AW53: 41 | AX53: 3 | AY53: 38 | AZ53: 28 | BA53: 10 | BE53: 44 | BF53: 4 | BG53: 40 | BH53: 28 | BI53: 10 | BL53: 2
A54: 66 | B54: ОПЦ.10 | C54: Основы экономической теории | D54: 4 | I54: 95 | J54: 7 | K54: 88 | L54: 52 | M54: 30 | P54: 6 | AG54: 40 | AH54: 4 | AI54: 36 | AJ54: 26 | AK54: 10 | AO54: 55 | AP54: 3 | AQ54: 52 | AR54: 26 | AS54: 20 | AV54: 6
A55: 67 | B55: ОПЦ.11 | C55: Анализ финансового – хозяйственной деятельности | D55: 6 | I55: 133 | J55: 7 | K55: 126 | L55: 80 | M55: 40 | P55: 6 | AW55: 63 | AX55: 3 | AY55: 60 | AZ55: 40 | BA55: 20 | BE55: 70 | BF55: 4 | BG55: 66 | BH55: 40 | BI55: 20 | BL55: 6
A56: 68 | B56: ОПЦ.12 | C56: Безопасность жизнедеятельности | F56: 6 | I56: 76 | J56: 6 | K56: 70 | L56: 60 | M56: 8 | P56: 2 | AW56: 23 | AX56: 3 | AY56: 20 | AZ56: 20 | BE56: 53 | BF56: 3 | BG56: 50 | BH56: 40 | BI56: 8 | BL56: 2
A57: 69 | B57: ОПЦ.13 | C57: Бухгалтерский учет | D57: 5 | H57: 5 | I57: 172 | J57: 10 | K57: 162 | L57: 96 | M57: 40 | O57: 20 | P57: 6 | AG57: 32 | AH57: 4 | AI57: 28 | AJ57: 18 | AK57: 10 | AO57: 31 | AP57: 3 | AQ57: 28 | AR57: 18 | AS57: 10 | AW57: 109 | AX57: 3 | AY57: 106 | AZ57: 60 | BA57: 20 | BC57: 20 | BD57: 6
A58: 70 | B58: ОПЦ.14 | C58: Основы финансовой грамотности | F58: 2 | I58: 44 | J58: 2 | K58: 42 | L58: 26 | M58: 14 | P58: 2 | Y58: 44 | Z58: 2 | AA58: 42 | AB58: 26 | AC58: 14 | AF58: 2
A59: 71 | B59: ОПЦ.15 | C59: Рыночная экономика | F59: 7 | I59: 36 | J59: 2 | K59: 34 | L59: 20 | M59: 12 | P59: 2 | BM59: 36 | BN59: 2 | BO59: 34 | BP59: 20 | BQ59: 12 | BT59: 2
A60: 72 | B60: ОПЦ.16 | C60: Карьерное моделирование | F60: 3 | I60: 54 | J60: 4 | K60: 50 | L60: 28 | M60: 20 | P60: 2 | AG60: 54 | AH60: 4 | AI60: 50 | AJ60: 28 | AK60: 20 | AN60: 2
A61: 73 | B61: ОПЦ.17 | C61: Налоговый учет | F61: 8 | I61: 44 | J61: 6 | K61: 38 | L61: 24 | M61: 12 | P61: 2 | BU61: 44 | BV61: 6 | BW61: 38 | BX61: 24 | BY61: 12 | CB61: 2
A62: 74 | B62: ОПЦ.18 | C62: Современные технологические процессы, оборудование и техника в экономике | F62: 8 | I62: 85 | J62: 9 | K62: 76 | L62: 4 | M62: 70 | P62: 2 | BM62: 40 | BN62: 2 | BO62: 38 | BP62: 2 | BQ62: 36 | BU62: 45 | BV62: 7 | BW62: 38 | BX62: 2 | BY62: 34 | CB62: 2
A63: 75 | B63: ОПЦ.19 | C63: Основы здорового образа жизни | E63: 3 | I63: 38 | J63: 4 | K63: 34 | L63: 22 | M63: 10 | P63: 2 | AG63: 38 | AH63: 4 | AI63: 34 | AJ63: 22 | AK63: 10 | AN63: 2
A64: 76 | B64: ОПЦ.20 | C64: Деловой этикет | E64: 8 | I64: 41 | J64: 7 | K64: 34 | L64: 22 | M64: 10 | P64: 2 | BU64: 41 | BV64: 7 | BW64: 34 | BX64: 22 | BY64: 10 | CB64: 2
A65: 77 | B65: ОПЦ.21 | C65: Основы предпринимательства | E65: 7 | I65: 40 | J65: 2 | K65: 38 | L65: 26 | M65: 10 | P65: 2 | BM65: 40 | BN65: 2 | BO65: 38 | BP65: 26 | BQ65: 10 | BT65: 2
A66: 79
A67: 80 | B67: ПЦ | C67: Профессиональный цикл | D67: 13 | F67: 14 | H67: 1 | I67: =I69+I80+I92+I103+I115+I126+I148 -> 1718 | J67: 94 | K67: 1624 | L67: 630 | M67: 294 | O67: 20 | P67: 68 | AG67: 84 | AH67: 10 | AI67: 74 | AJ67: 44 | AK67: 30 | AO67: 286 | AP67: 18 | AQ67: 268 | AR67: 120 | AS67: 62 | AV67: 14 | AW67: 112 | AX67: 8 | AY67: 104 | AZ67: 74 | BA67: 30 | BE67: 430 | BF67: 16 | BG67: 414 | BH67: 114 | BI67: 60 | BL67: 24 | BM67: 364 | BN67: 22 | BO67: 342 | BP67: 174 | BQ67: 78 | BT67: 18 | BU67: 442 | BV67: 20 | BW67: 422 | BX67: 104 | BY67: 34 | CA67: 20 | CB67: 12
A68: 81
A69: 82 | B69: ПМ.01 | C69: Документирование хозяйственных операций и ведение бухгалтерского учета активов организации | D69: 1 | F69: 3 | I69: =I71+I73+I75+I77 -> 190 | J69: =J71+J73+J75+J77 -> 12 | K69: 178 | L69: =L71 -> 54 | M69: =M71 -> 44 | P69: 8 | AG69: =AI69+AH71 -> 46 | AH69: =AH71+AH73+AH75+AH77 -> 6 | AI69: =AI71+AI73+AI75+AI77 -> 40 | AJ69: 20 | AK69: 20 | AN69: 2 | AO69: =AQ69+AP71 -> 144 | AP69: 6 | AQ69: =AQ71+AQ73+AQ75+AQ77 -> 138 | AR69: 34 | AS69: 24 | AV69: 6
A70: 83
A71: 84 | B71: МДК.01.01 | C71: Практические основы бухгалтерского учета имущества организации | F71: 3 | I71: 112 | J71: 12 | K71: 100 | L71: 54 | M71: 44 | P71: 2 | AG71: =46 -> 46 | AH71: 6 | AI71: =40 -> 40 | AJ71: =20 -> 20 | AK71: =20 -> 20 | AN71: 2 | AO71: =AP71+AQ71 -> 66 | AP71: 6 | AQ71: 60
A72: 86
A73: 87 | B73: УП.01.01 | C73: Учебная практика по документированию хозяйственных операций и ведению бухгалтерского учета активов организации | F73: 4 | G73: РП | I73: 36 | K73: 36 | L73: нед | M73: 1 | Q73: час | T73: нед | Y73: час | AB73: нед | AG73: час | AJ73: нед | AO73: час | AQ73: 36 | AR73: нед | AS73: 1 | AW73: час | AZ73: нед | BE73: час | BH73: нед | BM73: час | BP73: нед | BU73: час | BX73: нед
A74: 89
A75: 90 | B75: ПП.01.01 | C75: Производственная практика по документированию хозяйственных операций и ведению бухгалтерского учета активов организации | F75: 4 | G75: РП | I75: 36 | K75: 36 | L75: нед | M75: 1 | Q75: час | T75: нед | Y75: час | AB75: нед | AG75: час | AJ75: нед | AO75: час | AQ75: 36 | AR75: нед | AS75: 1 | AW75: час | AZ75: нед | BE75: час | BH75: нед | BM75: час | BP75: нед | BU75: час | BX75: нед
A76: 92
A77: 93 | B77: ПM.01.ЭК | C77: Экзамен квалификационный | D77: 4 | I77: 6 | K77: 6 | P77: 6 | AO77: 6 | AQ77: 6 | AV77: 6
A78: 94 | C78: Всего часов по МДК | I78: 112 | K78: 100
A79: 95
A80: 96 | B80: ПМ.02 | C80: Ведение бухгалтерского учета источников формирования активов, выполнение работ по инвентаризации активов и финансовых обязательств организации | D80: 3 | F80: 2 | I80: =I82+I83+I85+I87+I89 -> 418 | J80: =J82+J83+J85+J87+J89 -> 26 | K80: 392 | L80: =L82 -> 90 | M80: 89 | P80: 18 | AG80: =AG82+AG83 -> 38 | AH80: =AH82+AH83+AH85+AH87+AH89 -> 4 | AI80: =AI82+AI83+AI85+AI87+AI89 -> 34 | AJ80: =AJ82 -> 24 | AK80: 10 | AO80: =AO82+AO83 -> 142 | AP80: 12 | AQ80: =AQ82+AQ83+AQ85+AQ87+AQ89 -> 130 | AR80: 86 | AS80: 38 | AV80: 6 | AW80: =AW82+AW83 -> 56 | AX80: =AX82+AX83+AX85+AX87+AX89 -> 4 | AY80: =AY82+AY83+AY85+AY87+AY89 -> 52 | AZ80: 34 | BA80: 18 | BE80: =BE82+BE83 -> 68 | BF80: =BF82+BF83+BF85+BF87+BF89 -> 6 | BG80: =BG82+BG83+BG85+BG87+BG89 -> 176 | BH80: 36 | BI80: 20 | BL80: 12
A81: 97
A82: 98 | B82: МДК.02.01 | C82: Практические основы бухгалтерского учета источников формирования имущества организации | D82: 4 | I82: 144 | J82: 10 | K82: 134 | L82: 90 | M82: 38 | P82: 6 | AG82: 38 | AH82: 4 | AI82: 34 | AJ82: 24 | AK82: 10 | AO82: 106 | AP82: 6 | AQ82: 100 | AR82: 66 | AS82: 28 | AV82: 6
A83: 99 | B83: МДК.02.02 | C83: Бухгалтерская технология проведения и оформления инвентаризации | D83: 6 | I83: 160 | J83: 16 | K83: 144 | L83: 90 | M83: 48 | P83: 6 | AO83: 36 | AP83: 6 | AQ83: 30 | AR83: 20 | AS83: 10 | AW83: 56 | AX83: 4 | AY83: 52 | AZ83: 34 | BA83: 18 | BE83: 68 | BF83: 6 | BG83: 62 | BH83: 36 | BI83: 20 | BL83: 6
A84: 101
A85: 102 | B85: УП.02.01 | C85: Учебная практика по ведению бухгалтерского учета источников формирования активов, выполнению работ по инвентаризации активов и финансовых обязательств организации | F85: 6 | G85: РП | I85: 72 | K85: 72 | L85: нед | M85: 2 | Q85: час | T85: нед | Y85: час | AB85: нед | AG85: час | AJ85: нед | AO85: час | AR85: нед | AW85: час | AZ85: нед | BE85: час | BG85: 72 | BH85: нед | BI85: 2 | BM85: час | BP85: нед | BU85: час | BX85: нед
A86: 104
A87: 105 | B87: ПП.02.01 | C87: Производственная практика по ведению бухгалтерского учета источников формирования активов, выполнению работ по инвентаризации активов и финансовых | F87: 6 | G87: РП | I87: 36 | K87: 36 | L87: нед | M87: 1 | Q87: час | T87: нед | Y87: час | AB87: нед | AG87: час | AJ87: нед | AO87: час | AR87: нед | AW87: час | AZ87: нед | BE87: час | BG87: 36 | BH87: нед | BI87: 1 | BM87: час | BP87: нед | BU87: час | BX87: нед
A88: 107
A89: 108 | B89: ПM.02.ЭК | C89: Экзамен квалификационный | D89: 6 | I89: 6 | K89: 6 | P89: 6 | BE89: 6 | BG89: 6 | BL89: 6
A90: 109 | C90: Всего часов по МДК | I90: 304 | K90: 278
A91: 110
A92: 111 | B92: ПМ.03 | C92: Проведение расчетов с бюджетом и внебюджетными фондами | D92: 2 | F92: 2 | I92: =I94+I96+I98+I100 -> 214 | J92: =J94+J96+J98+J100 -> 6 | K92: 208 | L92: =L94 -> 80 | M92: =M94+M96+M98+M100 -> 46 | P92: 12 | BM92: =BN92+BO92 -> 214 | BN92: 6 | BO92: =BO94+BO96+BO98+BO100 -> 208 | BP92: 80 | BQ92: 44 | BT92: 12
A93: 112
A94: 113 | B94: МДК.03.01 | C94: Организация расчетов с бюджетом и внебюджетными фондами | D94: 7 | I94: 136 | J94: 6 | K94: 130 | L94: 80 | M94: 44 | P94: 6 | BM94: 136 | BN94: 6 | BO94: 130 | BP94: 80 | BQ94: 44 | BT94: 6
A95: 115
A96: 116 | B96: УП.03.01 | C96: Учебная практика по организации расчетов с бюджетом и внебюджетными фондами | F96: 7 | G96: РП | I96: 36 | K96: 36 | L96: нед | M96: 1 | Q96: час | T96: нед | Y96: час | AB96: нед | AG96: час | AJ96: нед | AO96: час | AR96: нед | AW96: час | AZ96: нед | BE96: час | BH96: нед | BM96: час | BO96: 36 | BP96: нед | BQ96: 1 | BU96: час | BX96: нед
A97: 118
A98: 119 | B98: ПП.03.01 | C98: Производственная практика по организации расчетов с бюджетом и внебюджетными фондами | F98: 7 | G98: РП | I98: 36 | K98: 36 | L98: нед | M98: 1 | Q98: час | T98: нед | Y98: час | AB98: нед | AG98: час | AJ98: нед | AO98: час | AR98: нед | AW98: час | AZ98: нед | BE98: час | BH98: нед | BM98: час | BO98: 36 | BP98: нед | BQ98: 1 | BU98: час | BX98: нед
A99: 121
A100: 122 | B100: ПM.03.ЭК | C100: Экзамен квалификационный | D100: 7 | I100: 6 | K100: 6 | P100: 6 | BM100: 6 | BO100: 6 | BT100: 6
A101: 123 | C101: Всего часов по МДК | I101: 136 | K101: 130
A102: 124
A103: 125 | B103: ПМ.04 | C103: Составление и использование бухгалтерской (финансовой) отчетности | D103: 3 | F103: 2 | I103: =I105+I106+I108+I110+I112 -> 392 | J103: =J105+J106+J108+J110+J112 -> 32 | K103: =K105+K106+K108+K110+K112 -> 360 | L103: =L105+L106 -> 194 | M103: =M105+M106 -> 76 | P103: =P105+P106+P112 -> 18 | BE103: =BE105+BE106 -> 86 | BF103: =BF105+BF106+BF108+BF110+BF112 -> 6 | BG103: =BG105+BG106+BG108+BG110+BG112 -> 80 | BH103: 52 | BI103: 28 | BM103: =BM105+BM106 -> 150 | BN103: =BN105+BN106+BN108+BN110+BN112 -> 16 | BO103: 134 | BP103: 94 | BQ103: 34 | BT103: 6 | BU103: 156 | BV103: =BV105+BV106+BV108+BV110+BV112 -> 10 | BW103: =BW105+BW106+BW108+BW110+BW112 -> 146 | BX103: =BX105+BX106 -> 48 | BY103: =BY105+BY106 -> 14 | CB103: =CB106+CB112 -> 12
A104: 126
A105: 127 | B105: МДК.04.01 | C105: Технология составления бухгалтерской (финансовой) отчетности | D105: 7 | I105: 158 | J105: 14 | K105: 144 | L105: 90 | M105: 48 | P105: 6 | BE105: 86 | BF105: 6 | BG105: 80 | BH105: 52 | BI105: 28 | BM105: 72 | BN105: 8 | BO105: 64 | BP105: 38 | BQ105: 20 | BT105: 6
A106: 128 | B106: МДК.04.02 | C106: Основы анализа бухгалтерской (финансовой) отчетности | D106: 8 | I106: =K106+J106 -> 156 | J106: 18 | K106: =L106+M106+P106 -> 138 | L106: =T106+AB106+AJ106+AR106+AZ106+BH106+BP106+BX106 -> 104 | M106: 28 | P106: 6 | BM106: 78 | BN106: 8 | BO106: 70 | BP106: 56 | BQ106: 14 | BU106: 84 | BV106: 10 | BW106: =BX106+BY106+CB106 -> 68 | BX106: =54-6 -> 48 | BY106: 14 | CB106: 6
A107: 130
A108: 131 | B108: УП.04.01 | C108: Учебная практика по составлению и использованию бухгалтерской (финансовой) отчетности | F108: 8 | G108: РП | I108: 36 | K108: 36 | L108: нед | M108: 1 | Q108: час | T108: нед | Y108: час | AB108: нед | AG108: час | AJ108: нед | AO108: час | AR108: нед | AW108: час | AZ108: нед | BE108: час | BH108: нед | BM108: час | BP108: нед | BU108: час | BW108: 36 | BX108: нед | BY108: 1
A109: 133
A110: 134 | B110: ПП.04.01 | C110: Производственная практика по составлению и использованию бухгалтерской (финансовой) отчетности | F110: 8 | G110: РП | I110: 36 | K110: 36 | L110: нед | M110: 1 | Q110: час | T110: нед | Y110: час | AB110: нед | AG110: час | AJ110: нед | AO110: час | AR110: нед | AW110: час | AZ110: нед | BE110: час | BH110: нед | BM110: час | BP110: нед | BU110: час | BW110: 36 | BX110: нед | BY110: 1
A111: 136
A112: 137 | B112: ПM.04.ЭК | C112: Экзамен квалификационный | D112: 8 | I112: 6 | K112: 6 | P112: 6 | BT112: 6 | BW112: 6 | CB112: 6
A113: 138 | C113: Всего часов по МДК | I113: =I106+I105 -> 314 | K113: =K106+K105 -> 282
A114: 139
A115: 140 | B115: ПМ.05 | C115: Осуществление налогового учета и налогового планирования в организации | D115: 2 | F115: 2 | H115: 1 | I115: =I117+I119+I121+I123 -> 178 | J115: =J117+J119+J121+J123 -> 10 | K115: 168 | L115: =L117 -> 44 | M115: =M117 -> 20 | O115: 20 | P115: =P117+P123 -> 12 | BU115: 178 | BV115: 10 | BW115: =BW117+BW119+BW121+BW123 -> 168 | BX115: =BX117 -> 44 | BY115: 20 | CA115: 20 | CB115: 12
A116: 141
A117: 142 | B117: МДК.05.01 | C117: Организация и планирование налоговой деятельности | D117: 8 | H117: 8 | I117: =106-6 -> 100 | J117: 10 | K117: =L117+M117+O117+P117 -> 90 | L117: =T117+AB117+AJ117+AR117+AZ117+BH117+BP117+BX117 -> 44 | M117: 20 | O117: 20 | P117: 6 | BU117: 106 | BV117: 10 | BW117: 90 | BX117: =50-6 -> 44 | BY117: 20 | CA117: 20 | CB117: 6
A118: 144
A119: 145 | B119: УП.05.01 | C119: Учебная практика по осуществлению налогового учета и налогового планирования в организации | F119: 8 | G119: РП | I119: 36 | K119: 36 | L119: нед | M119: 1 | Q119: час | T119: нед | Y119: час | AB119: нед | AG119: час | AJ119: нед | AO119: час | AR119: нед | AW119: час | AZ119: нед | BE119: час | BH119: нед | BM119: час | BP119: нед | BU119: час | BW119: 36 | BX119: нед | BY119: 1
A120: 147
A121: 148 | B121: ПП.05.01 | C121: Производственная практика по осуществлению налогового учета и налогового планирования в организации | F121: 8 | G121: РП | I121: 36 | K121: 36 | L121: нед | M121: 1 | Q121: час | T121: нед | Y121: час | AB121: нед | AG121: час | AJ121: нед | AO121: час | AR121: нед | AW121: час | AZ121: нед | BE121: час | BH121: нед | BM121: час | BP121: нед | BU121: час | BW121: 36 | BX121: нед | BY121: 1
A122: 150
A123: 151 | B123: ПM.05.ЭК | C123: Экзамен квалификационный | D123: 8 | I123: 6 | K123: 6 | P123: 6 | BW123: 6 | CB123: 6
A124: 152 | C124: Всего часов по МДК | I124: =I117 -> 100 | K124: =K117 -> 90
A125: 153
A126: 154 | B126: ПМ.06 | C126: Выполнение работ по одной или нескольким профессиям, должностям служащих: 23369 Кассир | D126: 2 | F126: 2 | I126: =I128+I130+I132+I134 -> 218 | J126: 8 | K126: 210 | L126: 66 | M126: 24 | P126: 12 | AW126: 56 | AX126: 4 | AY126: 52 | AZ126: 40 | BA126: 12 | BE126: 162 | BF126: 4 | BG126: 158 | BH126: 26 | BI126: 12 | BL126: 12
A127: 155
A128: 156 | B128: МДК.06.01 | C128: Организация и технология ведения кассовых операций в организации | D128: 6 | I128: 104 | J128: 8 | K128: 96 | L128: 66 | M128: 24 | P128: 6 | AW128: 56 | AX128: 4 | AY128: 52 | AZ128: 40 | BA128: 12 | BE128: 48 | BF128: 4 | BG128: 44 | BH128: 26 | BI128: 12 | BL128: 6
A129: 158
A130: 159 | B130: УП.06.01 | C130: Учебная практика по выполнению работ по одной или нескольким профессиям, должностям служащих: 23369 Кассир | F130: 6 | G130: РП | I130: 72 | K130: 72 | L130: нед | M130: 2 | Q130: час | T130: нед | Y130: час | AB130: нед | AG130: час | AJ130: нед | AO130: час | AR130: нед | AW130: час | AZ130: нед | BE130: час | BG130: 72 | BH130: нед | BI130: 2 | BM130: час | BP130: нед | BU130: час | BX130: нед
A131: 161
A132: 162 | B132: ПП.06.01 | C132: Производственная практика по выполнению работ по одной или нескольким профессиям, должностям служащих: 23369 Кассир | F132: 6 | G132: РП | I132: 36 | K132: 36 | L132: нед | M132: 1 | Q132: час | T132: нед | Y132: час | AB132: нед | AG132: час | AJ132: нед | AO132: час | AR132: нед | AW132: час | AZ132: нед | BE132: час | BG132: 36 | BH132: нед | BI132: 1 | BM132: час | BP132: нед | BU132: час | BX132: нед
A133: 164
A134: 165 | B134: ПM.06.ЭК | C134: Квалификационный экзамен | D134: 6 | I134: 6 | K134: 6 | P134: 6 | BE134: 6 | BG134: 6 | BL134: 6
A135: 166 | C135: Всего часов по МДК | I135: 104 | K135: 96
A136: 167
A137: 169
A138: 170 | C138: Учебная и производственная (по профилю специальности) практики | I138: =I140+I144 -> 504 | K138: 504 | L138: нед | M138: 14 | Q138: час | T138: нед | Y138: час | AB138: нед | AG138: час | AJ138: нед | AO138: час | AQ138: 72 | AR138: нед | AS138: 2 | AW138: час | AZ138: нед | BE138: час | BG138: 216 | BH138: нед | BI138: 6 | BM138: час | BO138: 72 | BP138: нед | BQ138: 2 | BU138: час | BW138: 144 | BX138: нед | BY138: 4
A139: 171
A140: 172 | C140: Учебная практика | I140: 288 | K140: 288 | L140: нед | M140: 8 | Q140: час | T140: нед | Y140: час | AB140: нед | AG140: час | AJ140: нед | AO140: час | AQ140: 36 | AR140: нед | AS140: 1 | AW140: час | AZ140: нед | BE140: час | BG140: 144 | BH140: нед | BI140: 4 | BM140: час | BO140: 36 | BP140: нед | BQ140: 1 | BU140: час | BW140: 72 | BX140: нед | BY140: 2
A141: 173 | C141: Концентрированная | I141: 288 | K141: 288 | L141: нед | M141: 8 | Q141: час | T141: нед | Y141: час | AB141: нед | AG141: час | AJ141: нед | AO141: час | AQ141: 36 | AR141: нед | AS141: 1 | AW141: час | AZ141: нед | BE141: час | BG141: 144 | BH141: нед | BI141: 4 | BM141: час | BO141: 36 | BP141: нед | BQ141: 1 | BU141: час | BW141: 72 | BX141: нед | BY141: 2
A142: 174 | C142: Рассредоточенная | L142: нед | Q142: час | T142: нед | Y142: час | AB142: нед | AG142: час | AJ142: нед | AO142: час | AR142: нед | AW142: час | AZ142: нед | BE142: час | BH142: нед | BM142: час | BP142: нед | BU142: час | BX142: нед
A143: 175
A144: 176 | C144: Производственная (по профилю специальности) практика | I144: 216 | K144: 216 | L144: нед | M144: 6 | Q144: час | T144: нед | Y144: час | AB144: нед | AG144: час | AJ144: нед | AO144: час | AQ144: 36 | AR144: нед | AS144: 1 | AW144: час | AZ144: нед | BE144: час | BG144: 72 | BH144: нед | BI144: 2 | BM144: час | BO144: 36 | BP144: нед | BQ144: 1 | BU144: час | BW144: 72 | BX144: нед | BY144: 2
A145: 177 | C145: Концентрированная | I145: 216 | K145: 216 | L145: нед | M145: 6 | Q145: час | T145: нед | Y145: час | AB145: нед | AG145: час | AJ145: нед | AO145: час | AQ145: 36 | AR145: нед | AS145: 1 | AW145: час | AZ145: нед | BE145: час | BG145: 72 | BH145: нед | BI145: 2 | BM145: час | BO145: 36 | BP145: нед | BQ145: 1 | BU145: час | BW145: 72 | BX145: нед | BY145: 2
A146: 178 | C146: Рассредоточенная | L146: нед | Q146: час | T146: нед | Y146: час | AB146: нед | AG146: час | AJ146: нед | AO146: час | AR146: нед | AW146: час | AZ146: нед | BE146: час | BH146: нед | BM146: час | BP146: нед | BU146: час | BX146: нед
A147: 179
A148: 180 | B148: ПДП | C148: ПРОИЗВОДСТВЕННАЯ ПРАКТИКА (ПРЕДДИПЛОМНАЯ) | F148: 8 | G148: РП | I148: 108 | K148: 108 | L148: нед | M148: 3 | Q148: час | T148: нед | Y148: час | AB148: нед | AG148: час | AJ148: нед | AO148: час | AR148: нед | AW148: час | AZ148: нед | BE148: час | BH148: нед | BM148: час | BP148: нед | BU148: час | BW148: 108 | BX148: нед | BY148: 3
A149: 181
A150: 182 | C150: Государственная итоговая аттестация | I150: 216 | K150: 216 | L150: нед | M150: 6 | Q150: час | T150: нед | Y150: час | AB150: нед | AG150: час | AJ150: нед | AO150: час | AR150: нед | AW150: час | AZ150: нед | BE150: час | BH150: нед | BM150: час | BP150: нед | BU150: час | BW150: 216 | BX150: нед | BY150: 6
A151: 183 | C151: Подготовка выпускной квалификационной работы | I151: 144 | K151: 144 | L151: нед | M151: 4 | Q151: час | T151: нед | Y151: час | AB151: нед | AG151: час | AJ151: нед | AO151: час | AR151: нед | AW151: час | AZ151: нед | BE151: час | BH151: нед | BM151: час | BP151: нед | BU151: час | BW151: 144 | BX151: нед | BY151: 4
A152: 184 | C152: Защита выпускной квалификационной работы | I152: 72 | K152: 72 | L152: нед | M152: 2 | Q152: час | T152: нед | Y152: час | AB152: нед | AG152: час | AJ152: нед | AO152: час | AR152: нед | AW152: час | AZ152: нед | BE152: час | BH152: нед | BM152: час | BP152: нед | BU152: час | BW152: 72 | BX152: нед | BY152: 2
A153: 185 | C153: Подготовка к государственным экзаменам | L153: нед | Q153: час | T153: нед | Y153: час | AB153: нед | AG153: час | AJ153: нед | AO153: час | AR153: нед | AW153: час | AZ153: нед | BE153: час | BH153: нед | BM153: час | BP153: нед | BU153: час | BX153: нед
A154: 186 | C154: Проведение государственных экзаменов | L154: нед | Q154: час | T154: нед | Y154: час | AB154: нед | AG154: час | AJ154: нед | AO154: час | AR154: нед | AW154: час | AZ154: нед | BE154: час | BH154: нед | BM154: час | BP154: нед | BU154: час | BX154: нед
A155: 187
A156: 192 | C156: в т.ч. в период обучения по циклам
A157: 193
A158: 194 | C158: ОБЪЕМ ОБРАЗОВАТЕЛЬНОЙ ПРОГРАММЫ В АКАДЕМИЧЕСКИХ ЧАСАХ | D158: 27 | E158: 3 | F158: 41 | H158: 2 | I158: 5904 | J158: 330 | K158: 5574 | L158: =L9+L32+L40+L44+L67 -> 2514 | M158: =M9+M32+M40+M44+M67+K150 -> 2224 | O158: =O9+O32+O40+O44+O67+O150 -> 40 | P158: =P9+P32+P40+P44+P67+P150 -> 212 | Q158: =Q8+Q44 -> 609 | R158: 32 | S158: =S44+S9 -> 636 | T158: 312 | U158: 268 | Y158: =Y8+Y44 -> 674 | Z158: 30 | AA158: =AA44+AA9 -> 708 | AB158: 441 | AC158: 349 | AF158: 44 | AG158: 612 | AH158: 56 | AI158: 556 | AJ158: 303 | AK158: 239 | AN158: 14 | AO158: 864 | AP158: 48 | AQ158: 816 | AR158: 402 | AS158: 296 | AV158: 46 | AW158: 612 | AX158: 34 | AY158: 578 | AZ158: 311 | BA158: 239 | BC158: 20 | BD158: 8 | BE158: 864 | BF158: 48 | BG158: 816 | BH158: 329 | BI158: 223 | BL158: 48 | BM158: 612 | BN158: 34 | BO158: 578 | BP158: 260 | BQ158: 222 | BT158: 24 | BU158: 864 | BV158: 48 | BW158: 816 | BX158: =BX9+BX32+BX40+BX44+BX67 -> 152 | BY158: 366 | CA158: 20 | CB158: =CB9+CB32+CB40+CB44+CB67 -> 26 | CC158: =CD158+CE158 -> 5834 | CD158: =R158+Z158+AH158+AP158+AX158+BF158+BN158+BV158 -> 330 | CE158: 5504 | CF158: 2510 | CG158: 2202 | CH158: 0 | CI158: 40 | CJ158: 210 | CL158: =CC158-I158 -> -70 | CM158: =CD158-J158 -> 0 | CN158: -70 | CO158: -4 | CP158: -22 | CQ158: 0 | CR158: 0 | CS158: -2
A159: 195
A160: 196 | C160: Экзамены (без учета физ. культуры) | Y160: 4 | AG160: 1 | AO160: 6 | AW160: 1 | BE160: 7 | BM160: 3 | BU160: 5
A161: 197 | C161: Зачеты (без учета физ. культуры) | AG161: 1 | BM161: 1 | BU161: 1
A162: 198 | C162: Диффер. зачеты (без учета физ. культуры) | Q162: 1 | Y162: 9 | AG162: 3 | AO162: 6 | AW162: 1 | BE162: 5 | BM162: 3 | BU162: 5
A163: 199 | C163: Курсовые проекты (без учета физ. культуры)
A164: 200 | C164: Курсовые работы (без учета физ. культуры) | AG164: =AG158++AO158 -> 1476 | AW164: 1 | BU164: 1
C165: В суммучасов каждого цикла включена учебная нагрузка по промежуточной аттестации
T170: =S158+AA158 -> 1344 | U170: в тч 3Эи 3К
T171: =T170-V171-W171 -> 1322 | V171: 18 | W171: 4

Sheet Комплесные
B1: № | C1: Вид контроля | D1: Наименование комплексного вида контроля | E1: Семестр | G1: [Семестр проведения комплексного вида контроля] Наименование дисциплины/МДК
B2: 1 | C2: Диф. зач | D2: Комплексный диф. зачет | E2: 4 | F2: 4 | G2: [4] | H2: ПП.01.01 Производственная практика по документированию хозяйственных операций и ведению бухгалтерского учета активов организации
F3: 4 | G3: [4] | H3: УП.01.01 Учебная практика по документированию хозяйственных операций и ведению бухгалтерского учета активов организации
B18: 2 | C18: Диф. зач | D18: Комплексный диф. зачет | E18: 6 | F18: 6 | G18: [6] | H18: УП.02.01 Учебная практика по ведению бухгалтерского учета источников формирования активов, выполнению работ по инвентаризации активов и финансовых обязательств организации
F19: 6 | G19: [6] | H19: ПП.02.01 Производственная практика по ведению бухгалтерского учета источников формирования активов, выполнению работ по инвентаризации активов и финансовых
B34: 3 | C34: Диф. зач | D34: Комплексный диф. зачет | E34: 7 | F34: 7 | G34: [7] | H34: УП.03.01 Учебная практика по организации расчетов с бюджетом и внебюджетными фондами
F35: 7 | G35: [7] | H35: ПП.03.01 Производственная практика по организации расчетов с бюджетом и внебюджетными фондами
B50: 4 | C50: Диф. зач | D50: Комплексный диф. зачет | E50: 8 | F50: 8 | G50: [8] | H50: УП.04.01 Учебная практика по составлению и использованию бухгалтерской (финансовой) отчетности
F51: 8 | G51: [8] | H51: ПП.04.01 Производственная практика по составлению и использованию бухгалтерской (финансовой) отчетности
B66: 5 | C66: Диф. зач | D66: Комплексный диф. зачет | E66: 8 | F66: 8 | G66: [8] | H66: УП.05.01 Учебная практика по осуществлению налогового учета и налогового планирования в организации
F67: 8 | G67: [8] | H67: ПП.05.01 Производственная практика по осуществлению налогового учета и налогового планирования в организации
B82: 6 | C82: Диф. зач | D82: Комплексный диф. зачет | E82: 6 | F82: 6 | G82: [6] | H82: УП.06.01 Учебная практика по выполнению работ по одной или нескольким профессиям, должностям служащих: 23369 Кассир
F83: 6 | G83: [6] | H83: ПП.06.01 Производственная практика по выполнению работ по одной или нескольким профессиям, должностям служащих: 23369 Кассир
B98: 7
B114: 8
B130: 9
B146: 10
B162: 11
B178: 12
B194: 13
B210: 14
B226: 15
B242: 16
B258: 17
B274: 18
B290: 19
B306: 20

Sheet Start (hidden)

Sheet Лист1

Sheet Лист2
